fUST/lending_fUST_20250812
["ID","MTS","AMOUNT","RATE_DAILY","PERIOD"]
[378726082,1754992256419,-1500.0,0.00020204,2]
[378726083,1754992256430,-183.0,0.00020208,2]
[378726084,1754992256440,-2200.0,0.00020212,2]
[378726085,1754992256450,-500.0,0.00020212,2]
[378726086,1754992256460,-1500.0,0.00020218,2]
[378726087,1754992256470,-183.0,0.00020226,2]
[378726088,1754992256479,-470.96,0.00020248,2]
[378726089,1754992256489,-738.18,0.00020248,2]
[378726090,1754992256499,-946.42,0.00020248,2]
[378726091,1754992256508,-1956.63,0.00020248,2]
[378726092,1754992256518,-755.62,0.00020248,2]
[378726093,1754992256527,-3777.53,0.00020248,2]
[378726094,1754992256537,-583.53,0.00020248,2]
[378726095,1754992256547,-460.0,0.00020248,2]
[378726096,1754992256556,-745.07,0.00020248,2]
[378726097,1754992256568,-474.38,0.00020249,2]
[378726098,1754992256579,-460.0,0.00020249,2]
[378726099,1754992256588,-576.82,0.00020249,2]
[378726100,1754992256598,-460.0,0.00020249,2]
[378726101,1754992256607,-460.0,0.00020249,2]
[378726102,1754992256618,-460.0,0.00020249,2]
[378726103,1754992256628,-593.0,0.00020249,2]
[378726104,1754992256637,-1928.68,0.00020249,2]
[378726105,1754992256648,-460.0,0.00020249,2]
[378726106,1754992256658,-732.25,0.00020249,2]
[378726107,1754992256667,-460.0,0.00020249,2]
[378726108,1754992256677,-151.0,0.00020249,2]
[378726109,1754992256687,-460.0,0.00020249,2]
[378726110,1754992256696,-183.0,0.00020249,2]
[378726111,1754992256706,-3140.05,0.00020259,2]
[378726112,1754992256715,-674.52,0.00020259,2]
[378726113,1754992256725,-3629.73,0.00020259,2]
[378726114,1754992256736,-863.46,0.00020259,2]
[378726115,1754992256746,-1178.65,0.00020259,2]
[378726116,1754992256755,-460.0,0.00020259,2]
[378726117,1754992256764,-560.12,0.00020259,2]
[378726118,1754992256774,-1167.21,0.00020259,2]
[378726119,1754992256784,-1525.41,0.00020259,2]
[378726120,1754992256793,-460.0,0.00020259,2]
[378726121,1754992256804,-1434.39633561,0.0002026,2]
[378726122,1754992256813,-460.0,0.0002026,2]
[378726123,1754992256823,-781.08,0.0002026,2]
[378726124,1754992256832,-545.9,0.0002026,2]
[378726125,1754992256844,-460.0,0.0002026,2]
[378726126,1754992256853,-460.0,0.0002026,2]
[378726127,1754992256863,-529.7,0.0002026,2]
[378726128,1754992256872,-463.45,0.0002026,2]
[378726129,1754992256882,-464.22,0.0002026,2]
[378726130,1754992256891,-845.87,0.0002026,2]
[378726131,1754992256901,-644.29,0.0002026,2]
[378726132,1754992256910,-460.0,0.0002026,2]
[378726133,1754992256919,-460.0,0.0002026,2]
[378726134,1754992256928,-667.32,0.0002026,2]
[378726135,1754992256938,-460.0,0.0002026,2]
[378726136,1754992256947,-460.0,0.0002026,2]
[378726137,1754992256956,-887.21,0.0002026,2]
[378726138,1754992256966,-517.15,0.0002026,2]
[378726139,1754992256975,-460.0,0.0002026,2]
[378726140,1754992256985,-805.53,0.0002026,2]
[378726141,1754992256995,-786.27,0.0002026,2]
[378726142,1754992257004,-460.0,0.0002026,2]
[378726143,1754992257014,-2472.28,0.0002026,2]
[378726144,1754992257023,-460.0,0.0002026,2]
[378726145,1754992257033,-1305.53,0.0002026,2]
[378726146,1754992257042,-460.0,0.0002026,2]
[378726147,1754992257051,-2701.41,0.0002026,2]
[378726148,1754992257061,-554.61,0.0002026,2]
[378726149,1754992257071,-674.52,0.0002026,2]
[378726150,1754992257080,-460.0,0.0002026,2]
[378726151,1754992257090,-460.0,0.0002026,2]
[378726152,1754992257100,-460.0,0.0002026,2]
[378726153,1754992257109,-558.21,0.0002026,2]
[378726154,1754992257119,-1122.98,0.0002026,2]
[378726155,1754992257128,-917.79,0.0002026,2]
[378726156,1754992257139,-1310.28,0.0002026,2]
[378726157,1754992257148,-460.0,0.0002026,2]
[378726158,1754992257157,-611.61,0.0002026,2]
[378726159,1754992257167,-3009.33,0.0002026,2]
[378726160,1754992257176,-151.0,0.0002026,2]
[378726161,1754992257185,-8314.14,0.0002026,2]
[378726162,1754992257195,-1604.91,0.0002026,2]
[378726163,1754992257204,-460.0,0.0002026,2]
[378726164,1754992257214,-3693.73,0.0002026,2]
[378726165,1754992257223,-850.02,0.0002026,2]
[378726166,1754992257232,-460.0,0.0002026,2]
[378726167,1754992257242,-4258.17,0.0002026,2]
[378726168,1754992257252,-2765.637727,0.0002026,2]
[378726169,1754992257261,-2765.637727,0.0002026,2]
[378726170,1754992257271,-460.0,0.0002026,2]
[378726171,1754992257280,-460.0,0.0002026,2]
[378726172,1754992257290,-3252.83,0.0002026,2]
[378726173,1754992257300,-712.98,0.0002026,2]
[378726174,1754992257309,-890.76,0.0002026,2]
[378726175,1754992257457,-460.0,0.0002026,2]
[378726176,1754992257467,-460.0,0.0002026,2]
[378726177,1754992257477,-460.0,0.0002026,2]
[378726178,1754992257486,-460.0,0.0002026,2]
[378726179,1754992257495,-1738.13,0.0002026,2]
[378726180,1754992257504,-1235.52,0.0002026,2]
[378726181,1754992257513,-2148.72,0.0002026,2]
[378726182,1754992257522,-1023.9,0.0002026,2]
[378726183,1754992257531,-1293.26,0.0002026,2]
[378726184,1754992257540,-1500.0,0.00020277,2]
[378726185,1754992257549,-1017.81377964,0.00020277,2]
[378726186,1754992257558,-1500.0,0.00020277,2]
[378726187,1754992257570,-800.0,0.00020314,2]
[378726188,1754992257580,-4584.03837793,0.00020341,2]
[378726189,1754992257589,-1216.97,0.0002036,2]
[378726190,1754992257598,-460.0,0.0002036,2]
[378726191,1754992257608,-602.77,0.0002036,2]
[378726192,1754992257617,-460.0,0.0002036,2]
[378726193,1754992257627,-516.48,0.0002036,2]
[378726194,1754992257635,-460.0,0.0002036,2]
[378726195,1754992257647,-508.62,0.0002036,2]
[378726196,1754992257656,-632.09,0.0002036,2]
[378726197,1754992257665,-460.0,0.0002036,2]
[378726198,1754992257674,-460.0,0.0002036,2]
[378726199,1754992257683,-460.0,0.0002036,2]
[378726200,1754992257692,-460.0,0.0002036,2]
[378726201,1754992257701,-486.83812529,0.0002036,2]
[378726202,1754992257710,-617.77,0.0002036,2]
[378726203,1754992257719,-489.838978,0.0002036,2]
[378726204,1754992257728,-557.12,0.0002036,2]
[378726205,1754992257737,-667.12,0.0002036,2]
[378726206,1754992257746,-460.0,0.0002036,2]
[378726207,1754992257755,-500.32,0.0002036,2]
[378726208,1754992257764,-1470.97,0.0002036,2]
[378726209,1754992257773,-460.0,0.0002036,2]
[378726210,1754992257782,-494.71,0.0002036,2]
[378726211,1754992257791,-460.0,0.0002036,2]
[378726212,1754992257800,-460.0,0.0002036,2]
[378726213,1754992257809,-460.0,0.0002036,2]
[378726214,1754992257818,-460.0,0.0002036,2]
[378726215,1754992257827,-868.45,0.0002036,2]
[378726216,1754992257836,-460.0,0.0002036,2]
[378726217,1754992257845,-581.5,0.0002036,2]
[378726218,1754992257854,-460.0,0.0002036,2]
[378726219,1754992257863,-460.0,0.0002036,2]
[378726220,1754992257872,-460.0,0.0002036,2]
[378726221,1754992257881,-460.0,0.0002036,2]
[378726222,1754992257892,-460.0,0.0002036,2]
[378726223,1754992257904,-460.0,0.0002036,2]
[378726224,1754992257913,-460.0,0.0002036,2]
[378726225,1754992257922,-476.55,0.0002036,2]
[378726226,1754992257930,-791.25,0.0002036,2]
[378726227,1754992257939,-460.0,0.0002036,2]
[378726228,1754992257948,-966.07,0.0002036,2]
[378726229,1754992257957,-473.99,0.0002036,2]
[378726230,1754992257966,-460.0,0.0002036,2]
[378726231,1754992257975,-629.77,0.0002036,2]
[378726232,1754992257984,-1410.64,0.0002036,2]
[378726233,1754992257993,-583.61,0.0002036,2]
[378726234,1754992258002,-460.0,0.0002036,2]
[378726235,1754992258012,-460.0,0.0002036,2]
[378726236,1754992258021,-460.0,0.0002036,2]
[378726237,1754992258030,-783.89,0.0002036,2]
[378726238,1754992258039,-460.0,0.0002036,2]
[378726239,1754992258048,-460.0,0.0002036,2]
[378726240,1754992258057,-2003.98,0.0002036,2]
[378726241,1754992258067,-460.0,0.0002036,2]
[378726242,1754992258076,-460.0,0.0002036,2]
[378726243,1754992258085,-460.0,0.0002036,2]
[378726244,1754992258093,-464.63,0.0002036,2]
[378726245,1754992258103,-460.0,0.0002036,2]
[378726246,1754992258113,-460.0,0.0002036,2]
[378726247,1754992258122,-460.0,0.0002036,2]
[378726248,1754992258131,-341.1,0.00020393,2]
[378726249,1754992258144,-430.826,0.00020399,2]
[378726250,1754992258154,-1500.0,0.00020402,2]
[378726251,1754992258164,-183.0,0.00020421,2]
[378726252,1754992258174,-183.0,0.00020445,2]
[378726253,1754992258183,-304.86178612,0.00020451,2]
[378726254,1754992258193,-260.0,0.00020458,2]
[378726255,1754992258203,-470.96,0.00020522,2]
[378726256,1754992258212,-738.18,0.00020522,2]
[378726257,1754992258221,-946.42,0.00020522,2]
[378726258,1754992258230,-1956.63,0.00020522,2]
[378726259,1754992258239,-755.62,0.00020522,2]
[378726260,1754992258249,-3777.53,0.00020522,2]
[378726261,1754992258258,-583.53,0.00020522,2]
[378726262,1754992258267,-460.0,0.00020522,2]
[378726263,1754992258276,-745.07,0.00020522,2]
[378726264,1754992258285,-474.38,0.00020523,2]
[378726265,1754992258294,-460.0,0.00020523,2]
[378726266,1754992258303,-576.82,0.00020523,2]
[378726267,1754992258312,-460.0,0.00020523,2]
[378726268,1754992258321,-460.0,0.00020523,2]
[378726269,1754992258331,-460.0,0.00020523,2]
[378726270,1754992258340,-593.0,0.00020523,2]
[378726271,1754992258350,-1928.68,0.00020523,2]
[378726272,1754992258359,-732.25,0.00020523,2]
[378726273,1754992258368,-460.0,0.00020523,2]
[378726274,1754992258377,-557.97974115,0.00020523,2]
[378726275,1754992258387,-3140.05,0.00020533,2]
[378726276,1754992258398,-674.52,0.00020533,2]
[378726277,1754992258407,-3629.73,0.00020533,2]
[378726278,1754992258416,-863.46,0.00020533,2]
[378726279,1754992258426,-1178.65,0.00020533,2]
[378726280,1754992258436,-460.0,0.00020533,2]
[378726281,1754992258445,-560.12,0.00020533,2]
[378726282,1754992258455,-1167.21,0.00020533,2]
[378726283,1754992258464,-1525.41,0.00020533,2]
[378726284,1754992258473,-460.0,0.00020533,2]
[378726285,1754992258482,-460.0,0.00020534,2]
[378726286,1754992258492,-781.08,0.00020534,2]
[378726287,1754992258502,-545.9,0.00020534,2]
[378726288,1754992258511,-151.0,0.00020534,2]
[378726289,1754992258520,-460.0,0.00020534,2]
[378726290,1754992258529,-460.0,0.00020534,2]
[378726291,1754992258539,-529.7,0.00020534,2]
[378726292,1754992258548,-463.45,0.00020534,2]
[378726293,1754992258557,-464.22,0.00020534,2]
[378726294,1754992258571,-845.87,0.00020534,2]
[378726295,1754992258580,-644.29,0.00020534,2]
[378726296,1754992258590,-460.0,0.00020534,2]
[378726297,1754992258600,-460.0,0.00020534,2]
[378726298,1754992258610,-667.32,0.00020534,2]
[378726299,1754992258619,-460.0,0.00020534,2]
[378726300,1754992258629,-460.0,0.00020534,2]
[378726301,1754992258642,-887.21,0.00020534,2]
[378726302,1754992258652,-517.15,0.00020534,2]
[378726303,1754992258662,-460.0,0.00020534,2]
[378726304,1754992258671,-805.53,0.00020534,2]
[378726305,1754992258681,-786.27,0.00020534,2]
[378726306,1754992258691,-460.0,0.00020534,2]
[378726307,1754992258700,-2472.28,0.00020534,2]
[378726308,1754992258710,-460.0,0.00020534,2]
[378726309,1754992258719,-1305.53,0.00020534,2]
[378726310,1754992258728,-460.0,0.00020534,2]
[378726311,1754992258737,-2701.41,0.00020534,2]
[378726312,1754992258746,-554.61,0.00020534,2]
[378726313,1754992258756,-674.52,0.00020534,2]
[378726314,1754992258765,-460.0,0.00020534,2]
[378726315,1754992258775,-460.0,0.00020534,2]
[378726316,1754992258785,-206.4,0.00020534,2]
[378726317,1754992258794,-558.21,0.00020534,2]
[378726318,1754992258804,-1122.98,0.00020534,2]
[378726319,1754992258814,-917.79,0.00020534,2]
[378726320,1754992258823,-1310.28,0.00020534,2]
[378726321,1754992258833,-460.0,0.00020534,2]
[378726322,1754992258842,-611.61,0.00020534,2]
[378726323,1754992258852,-3009.33,0.00020534,2]
[378726324,1754992258861,-8314.14,0.00020534,2]
[378726325,1754992258871,-1604.91,0.00020534,2]
[378726326,1754992258880,-493.88632324,0.00020534,2]
[378726327,1754992258889,-3693.73,0.00020534,2]
[378726328,1754992258899,-850.02,0.00020534,2]
[378726329,1754992258908,-460.0,0.00020534,2]
[378726330,1754992258918,-4258.17,0.00020534,2]
[378726331,1754992258927,-460.0,0.00020534,2]
[378726332,1754992258937,-460.0,0.00020534,2]
[378726333,1754992258947,-3252.83,0.00020534,2]
[378726334,1754992258956,-712.98,0.00020534,2]
[378726335,1754992258966,-890.76,0.00020534,2]
[378726336,1754992258975,-460.0,0.00020534,2]
[378726337,1754992258983,-460.0,0.00020534,2]
[378726338,1754992258993,-460.0,0.00020534,2]
[378726339,1754992259002,-460.0,0.00020534,2]
[378726340,1754992259012,-1738.13,0.00020534,2]
[378726341,1754992259022,-1235.52,0.00020534,2]
[378726342,1754992259031,-2148.72,0.00020534,2]
[378726343,1754992259040,-1023.9,0.00020534,2]
[378726344,1754992259050,-1293.26,0.00020534,2]
[378726345,1754992259059,-150.92772289,0.00020551,2]
[378726346,1754992259069,-800.0,0.00020587,2]
[378726347,1754992259078,-183.0,0.00020622,2]
[378726348,1754992259087,-1216.97,0.00020634,2]
[378726349,1754992259096,-460.0,0.00020634,2]
[378726350,1754992259106,-602.77,0.00020634,2]
[378726351,1754992259114,-460.0,0.00020634,2]
[378726352,1754992259123,-516.48,0.00020634,2]
[378726353,1754992259132,-460.0,0.00020634,2]
[378726354,1754992259143,-508.62,0.00020634,2]
[378726355,1754992259151,-632.09,0.00020634,2]
[378726356,1754992259160,-460.0,0.00020634,2]
[378726357,1754992259171,-460.0,0.00020634,2]
[378726358,1754992259180,-460.0,0.00020634,2]
[378726359,1754992259189,-460.0,0.00020634,2]
[378726360,1754992259198,-617.77,0.00020634,2]
[378726361,1754992259207,-557.12,0.00020634,2]
[378726362,1754992259217,-667.12,0.00020634,2]
[378726363,1754992259226,-169.951023,0.00020634,2]
[378726364,1754992259235,-460.0,0.00020634,2]
[378726365,1754992259245,-500.32,0.00020634,2]
[378726366,1754992259254,-1470.97,0.00020634,2]
[378726367,1754992259264,-460.0,0.00020634,2]
[378726368,1754992259273,-494.71,0.00020634,2]
[378726369,1754992259282,-460.0,0.00020634,2]
[378726370,1754992259291,-472.87756567,0.00020634,2]
[378726371,1754992259300,-460.0,0.00020634,2]
[378726372,1754992259310,-460.0,0.00020634,2]
[378726373,1754992259319,-868.45,0.00020634,2]
[378726374,1754992259328,-460.0,0.00020634,2]
[378726375,1754992259338,-581.5,0.00020634,2]
[378726376,1754992259347,-188.71587405,0.00020634,2]
[378726377,1754992259357,-460.0,0.00020634,2]
[378726378,1754992259366,-460.0,0.00020634,2]
[378726379,1754992259384,-460.0,0.00020634,2]
[378726380,1754992259394,-460.0,0.00020634,2]
[378726381,1754992259403,-375.34549564,0.00020634,2]
[378726382,1754992259413,-460.0,0.00020634,2]
[378726383,1754992259422,-476.55,0.00020634,2]
[378726384,1754992259431,-791.25,0.00020634,2]
[378726385,1754992259441,-460.0,0.00020634,2]
[378726386,1754992259450,-966.07,0.00020634,2]
[378726387,1754992259459,-473.99,0.00020634,2]
[378726388,1754992259469,-460.0,0.00020634,2]
[378726389,1754992259478,-629.77,0.00020634,2]
[378726390,1754992259487,-1410.64,0.00020634,2]
[378726391,1754992259496,-583.61,0.00020634,2]
[378726392,1754992259506,-460.0,0.00020634,2]
[378726393,1754992259515,-460.0,0.00020634,2]
[378726394,1754992259524,-460.0,0.00020634,2]
[378726395,1754992259533,-783.89,0.00020634,2]
[378726396,1754992259543,-460.0,0.00020634,2]
[378726397,1754992259552,-240.5890184,0.00020634,2]
[378726398,1754992259561,-2003.98,0.00020634,2]
[378726399,1754992259574,-460.0,0.00020634,2]
[378726400,1754992259583,-460.0,0.00020634,2]
[378726401,1754992259592,-460.0,0.00020634,2]
[378726402,1754992259602,-464.63,0.00020634,2]
[378726403,1754992259611,-460.0,0.00020634,2]
[378726404,1754992259620,-460.0,0.00020634,2]
[378726405,1754992259629,-460.0,0.00020634,2]
[378726406,1754992259638,-341.1,0.00020654,2]
[378726407,1754992259649,-183.0,0.00020686,2]
[378726408,1754992259659,-2000.0,0.00020701,2]
[378726409,1754992259668,-500.9019129,0.00020707,2]
[378726410,1754992259678,-1114.23221877,0.00020707,2]
[378726411,1754992259686,-183.0,0.00020708,2]
[378726412,1754992259695,-1500.0,0.00020746,2]
[378726413,1754992259705,-183.0,0.00020749,2]
[378726414,1754992259715,-2000.0,0.00020752,2]
[378726415,1754992259723,-2000.0,0.00020752,2]
[378726416,1754992259733,-183.0,0.00020753,2]
[378726417,1754992259742,-719.79528619,0.00020754,2]
[378726418,1754992259751,-151.0,0.00020765,2]
[378726419,1754992259760,-2000.0,0.00020766,2]
[378726420,1754992259769,-470.96,0.00020796,2]
[378726421,1754992259779,-738.18,0.00020796,2]
[378726422,1754992259788,-946.42,0.00020796,2]
[378726423,1754992259798,-1956.63,0.00020796,2]
[378726424,1754992259808,-755.62,0.00020796,2]
[378726425,1754992259817,-3777.53,0.00020796,2]
[378726426,1754992259826,-583.53,0.00020796,2]
[378726427,1754992259835,-460.0,0.00020796,2]
[378726428,1754992259844,-745.07,0.00020796,2]
[378726429,1754992259853,-474.38,0.00020797,2]
[378726430,1754992259863,-460.0,0.00020797,2]
[378726431,1754992259872,-576.82,0.00020797,2]
[378726432,1754992259882,-460.0,0.00020797,2]
[378726433,1754992259891,-460.0,0.00020797,2]
[378726434,1754992259901,-460.0,0.00020797,2]
[378726435,1754992259910,-593.0,0.00020797,2]
[378726436,1754992259919,-1928.68,0.00020797,2]
[378726437,1754992259928,-732.25,0.00020797,2]
[378726438,1754992259937,-460.0,0.00020797,2]
[378726439,1754992259946,-3140.05,0.00020807,2]
[378726440,1754992259956,-674.52,0.00020807,2]
[378726441,1754992259965,-3629.73,0.00020807,2]
[378726442,1754992259974,-863.46,0.00020807,2]
[378726443,1754992259983,-1178.65,0.00020807,2]
[378726444,1754992259992,-460.0,0.00020807,2]
[378726445,1754992260000,-560.12,0.00020807,2]
[378726446,1754992260010,-1167.21,0.00020807,2]
[378726447,1754992260020,-1525.41,0.00020807,2]
[378726448,1754992260029,-454.0,0.00020807,2]
[378726449,1754992260039,-460.0,0.00020808,2]
[378726450,1754992260049,-781.08,0.00020808,2]
[378726451,1754992260060,-545.9,0.00020808,2]
[378726452,1754992260071,-460.0,0.00020808,2]
[378726453,1754992260080,-460.0,0.00020808,2]
[378726454,1754992260090,-529.7,0.00020808,2]
[378726455,1754992260099,-463.45,0.00020808,2]
[378726456,1754992260109,-464.22,0.00020808,2]
[378726457,1754992260118,-845.87,0.00020808,2]
[378726458,1754992260127,-644.29,0.00020808,2]
[378726459,1754992260137,-460.0,0.00020808,2]
[378726460,1754992260149,-460.0,0.00020808,2]
[378726461,1754992260158,-667.32,0.00020808,2]
[378726462,1754992260168,-460.0,0.00020808,2]
[378726463,1754992260177,-460.0,0.00020808,2]
[378726464,1754992260187,-887.21,0.00020808,2]
[378726465,1754992260197,-517.15,0.00020808,2]
[378726466,1754992260206,-460.0,0.00020808,2]
[378726467,1754992260216,-805.53,0.00020808,2]
[378726468,1754992260225,-786.27,0.00020808,2]
[378726469,1754992260236,-460.0,0.00020808,2]
[378726470,1754992260245,-2472.28,0.00020808,2]
[378726471,1754992260255,-460.0,0.00020808,2]
[378726472,1754992260266,-1305.53,0.00020808,2]
[378726473,1754992260276,-460.0,0.00020808,2]
[378726474,1754992260285,-2701.41,0.00020808,2]
[378726475,1754992260295,-554.61,0.00020808,2]
[378726476,1754992260304,-674.52,0.00020808,2]
[378726477,1754992260314,-460.0,0.00020808,2]
[378726478,1754992260323,-460.0,0.00020808,2]
[378726479,1754992260333,-558.21,0.00020808,2]
[378726480,1754992260342,-1122.98,0.00020808,2]
[378726481,1754992260351,-917.79,0.00020808,2]
[378726482,1754992260360,-1310.28,0.00020808,2]
[378726483,1754992260369,-460.0,0.00020808,2]
[378726484,1754992260379,-611.61,0.00020808,2]
[378726485,1754992260388,-3009.33,0.00020808,2]
[378726486,1754992260398,-151.0,0.00020808,2]
[378726487,1754992260407,-8314.14,0.00020808,2]
[378726488,1754992260417,-1604.91,0.00020808,2]
[378726489,1754992260427,-3693.73,0.00020808,2]
[378726490,1754992260436,-850.02,0.00020808,2]
[378726491,1754992260446,-460.0,0.00020808,2]
[378726492,1754992260455,-4258.17,0.00020808,2]
[378726493,1754992260466,-2765.637727,0.00020808,2]
[378726494,1754992260475,-2765.637727,0.00020808,2]
[378726495,1754992260484,-417.05,0.00020808,2]
[378726496,1754992260493,-460.0,0.00020808,2]
[378726497,1754992260502,-3252.83,0.00020808,2]
[378726498,1754992260511,-712.98,0.00020808,2]
[378726499,1754992260520,-890.76,0.00020808,2]
[378726500,1754992260530,-460.0,0.00020808,2]
[378726501,1754992260686,-460.0,0.00020808,2]
[378726502,1754992260696,-460.0,0.00020808,2]
[378726503,1754992260705,-366.07,0.00020808,2]
[378726504,1754992260715,-1738.13,0.00020808,2]
[378726505,1754992260724,-1235.52,0.00020808,2]
[378726506,1754992260734,-2148.72,0.00020808,2]
[378726507,1754992260743,-1023.9,0.00020808,2]
[378726508,1754992260752,-1293.26,0.00020808,2]
[378726509,1754992260761,-2000.0,0.00020825,2]
[378726510,1754992260770,-1945.94898656,0.00020825,2]
[378726511,1754992260780,-160.0,0.00020829,4]
[378726512,1754992260790,-1216.97,0.00020908,2]
[378726513,1754992260799,-460.0,0.00020908,2]
[378726514,1754992260809,-602.77,0.00020908,2]
[378726515,1754992260819,-460.0,0.00020908,2]
[378726516,1754992260828,-516.48,0.00020908,2]
[378726517,1754992260837,-460.0,0.00020908,2]
[378726518,1754992260846,-508.62,0.00020908,2]
[378726519,1754992260856,-632.09,0.00020908,2]
[378726520,1754992260866,-460.0,0.00020908,2]
[378726521,1754992260875,-460.0,0.00020908,2]
[378726522,1754992260884,-460.0,0.00020908,2]
[378726523,1754992260894,-577.40324774,0.00020908,2]
[378726524,1754992260903,-617.77,0.00020908,2]
[378726525,1754992260911,-557.12,0.00020908,2]
[378726526,1754992260920,-667.12,0.00020908,2]
[378726527,1754992260929,-460.0,0.00020908,2]
[378726528,1754992260939,-500.32,0.00020908,2]
[378726529,1754992260950,-1470.97,0.00020908,2]
[378726530,1754992260959,-460.0,0.00020908,2]
[378726531,1754992260968,-494.71,0.00020908,2]
[378726532,1754992260978,-460.0,0.00020908,2]
[378726533,1754992260987,-460.0,0.00020908,2]
[378726534,1754992260997,-460.0,0.00020908,2]
[378726535,1754992261006,-868.45,0.00020908,2]
[378726536,1754992261017,-460.0,0.00020908,2]
[378726537,1754992261026,-581.5,0.00020908,2]
[378726538,1754992261035,-460.0,0.00020908,2]
[378726539,1754992261045,-460.0,0.00020908,2]
[378726540,1754992261059,-460.0,0.00020908,2]
[378726541,1754992261071,-460.0,0.00020908,2]
[378726542,1754992261080,-476.55,0.00020908,2]
[378726543,1754992261090,-791.25,0.00020908,2]
[378726544,1754992261100,-966.07,0.00020908,2]
[378726545,1754992261111,-473.99,0.00020908,2]
[378726546,1754992261122,-460.0,0.00020908,2]
[378726547,1754992261131,-629.77,0.00020908,2]
[378726548,1754992261140,-1410.64,0.00020908,2]
[378726549,1754992261151,-583.61,0.00020908,2]
[378726550,1754992261160,-460.0,0.00020908,2]
[378726551,1754992261170,-460.0,0.00020908,2]
[378726552,1754992261182,-460.0,0.00020908,2]
[378726553,1754992261196,-783.89,0.00020908,2]
[378726554,1754992261206,-460.0,0.00020908,2]
[378726555,1754992261215,-2003.98,0.00020908,2]
[378726556,1754992261225,-1500.0,0.00020908,2]
[378726557,1754992261234,-460.0,0.00020908,2]
[378726558,1754992261243,-460.0,0.00020908,2]
[378726559,1754992261253,-460.0,0.00020908,2]
[378726560,1754992261263,-464.63,0.00020908,2]
[378726561,1754992261273,-214.25971025,0.00020908,2]
[378726562,1754992261283,-460.0,0.00020908,2]
[378726563,1754992261292,-460.0,0.00020908,2]
[378726564,1754992261301,-151.0,0.00020909,2]
[378726565,1754992261310,-341.1,0.00020915,2]
[378726566,1754992261320,-500.0,0.00020947,2]
[378726567,1754992261329,-1001.53977189,0.0002095,2]
[378726568,1754992261338,-800.0,0.00020951,2]
[378726569,1754992261347,-8057.71660867,0.00021,5]
[378726570,1754992261357,-1000.0,0.00021,2]
[378726571,1754992261367,-1000.0,0.00021,2]
[378726572,1754992261377,-360.0,0.00021006,2]
[378726573,1754992261386,-470.96,0.0002107,2]
[378726574,1754992261395,-738.18,0.0002107,2]
[378726575,1754992261405,-946.42,0.0002107,2]
[378726576,1754992261415,-1956.63,0.0002107,2]
[378726577,1754992261425,-755.62,0.0002107,2]
[378726578,1754992261434,-3777.53,0.0002107,2]
[378726579,1754992261444,-583.53,0.0002107,2]
[378726580,1754992261454,-460.0,0.0002107,2]
[378726581,1754992261464,-745.07,0.0002107,2]